bitfinex-derivatives/quotes_ETHF0:USTF0_20250830
["timestamp","ask_amount","ask_price","bid_price","bid_amount"]
[1756557631120,3.2078,4356.1,4356.0,0.1947]
[1756557631318,3.2078,4356.1,4356.0,0.4797]
[1756557634215,3.3898,4356.1,4356.0,0.4797]
[1756557634623,3.5036,4356.1,4356.0,0.4797]
[1756557635423,3.2078,4356.1,4356.0,0.4797]
[1756557639821,3.506,4356.1,4356.0,0.4797]
[1756557640027,3.506,4356.1,4356.0,0.7167]
[1756557640523,0.1147,4355.4,4354.9,0.296]
[1756557640723,0.2982,4354.9,4354.8,3.6364]
[1756557641228,0.2982,4354.9,4354.8,3.9324]
[1756557641419,0.2982,4354.9,4354.8,0.4876]
[1756557641625,0.237,4355.8,4354.7,33.309]
[1756557641626,0.1147,4354.8,4354.7,33.309]
[1756557643025,0.1147,4354.8,4354.7,33.605]
[1756557643620,0.2294,4355.0,4354.7,33.309]
[1756557643821,0.2982,4354.9,4354.8,0.4876]
[1756557644022,0.1147,4354.8,4354.7,33.368]
[1756557644228,0.1147,4354.8,4354.7,33.605]
[1756557644425,0.1147,4354.8,4354.7,33.072]
[1756557644629,0.2982,4354.4,4354.3,0.296]
[1756557644830,0.2982,4354.4,4354.3,0.533]
[1756557645030,0.2982,4354.4,4353.7,0.296]
[1756557645230,0.2982,4354.4,4353.8,0.237]
[1756557645531,0.2982,4354.0,4353.9,0.4876]
[1756557646833,3.2078,4354.6,4353.9,0.296]
[1756557646834,0.1147,4354.5,4353.9,0.296]
[1756557647334,0.2982,4354.0,4353.9,0.4876]
[1756557647534,3.2078,4354.6,4353.7,0.296]
[1756557647535,0.1147,4354.5,4353.7,0.296]
[1756557647726,0.1835,4353.9,4353.8,0.4876]
[1756557648533,0.1147,4354.5,4353.9,0.296]
[1756557649629,0.2982,4354.5,4354.4,0.1916]
[1756557649837,0.1147,4355.0,4354.9,0.4876]
[1756557650828,0.2982,4355.0,4354.9,0.4876]
[1756557651135,0.2982,4355.0,4353.6,3.2078]
[1756557651136,0.1835,4354.8,4353.6,3.2078]
[1756557651332,0.2982,4354.8,4353.8,0.296]
[1756557651531,0.2982,4354.8,4354.7,0.1916]
[1756557651728,0.1835,4354.8,4354.7,0.4876]
[1756557652132,0.1147,4355.0,4354.9,0.1916]
[1756557652328,0.1147,4355.0,4354.9,0.4876]
[1756557653829,3.2078,4355.7,4354.9,4.42122]
[1756557654030,3.2078,4355.7,4355.0,0.296]
[1756557654237,3.2078,4355.7,4355.6,0.4876]
[1756557654431,3.2078,4355.7,4355.6,0.7256]
[1756557655037,3.6404,4355.7,4355.6,0.7256]
[1756557655439,3.2078,4355.7,4355.6,0.7256]
[1756557655739,3.411,4355.7,4355.6,0.7256]
[1756557656535,3.2078,4356.2,4355.7,0.296]
[1756557656839,3.2078,4356.2,4356.1,0.4876]
[1756557657034,3.2078,4356.2,4356.1,0.7256]
[1756557658436,3.411,4356.2,4356.1,0.7256]
[1756557658634,3.6404,4356.2,4356.1,0.7256]
[1756557660141,3.6404,4356.2,4356.1,0.238]
[1756557660342,3.6404,4356.2,4356.1,0.7256]
[1756557660940,3.6404,4356.2,4356.1,0.238]
[1756557661440,0.2294,4356.1,4356.0,0.534]
[1756557661639,0.4326,4356.1,4356.0,0.7256]
[1756557664036,0.4326,4356.1,4356.0,0.238]
[1756557665437,4.0,4356.1,4354.7,0.296]
[1756557665642,0.2032,4354.8,4354.7,0.4876]
[1756557665839,0.2032,4354.8,4354.7,0.7256]
[1756557666138,0.4326,4354.8,4354.7,0.7256]
[1756557666941,0.4326,4354.8,4354.7,0.238]
[1756557668044,0.4326,4354.8,4354.7,0.7282]
[1756557670435,0.2021,4354.3,4354.1,33.076]
[1756557670641,0.2295,4354.2,4354.1,33.313]
[1756557670835,0.4316,4354.2,4354.1,0.237]
[1756557671040,0.4316,4353.9,4353.8,0.237]
[1756557672050,0.4316,4353.9,4353.8,0.7272]
[1756557672440,3.2078,4354.0,4353.8,0.7272]
[1756557672640,3.2078,4354.0,4353.9,0.4902]
[1756557673143,3.6394,4354.0,4353.9,0.3028]
[1756557673350,3.6394,4354.0,4353.7,0.237]
[1756557673541,0.2021,4353.8,4353.7,0.5398]
[1756557673741,0.4316,4353.8,4353.1,0.3028]
[1756557673942,0.2021,4353.3,4353.2,0.7272]
[1756557674144,0.4316,4353.3,4353.2,0.4902]
[1756557676147,0.2021,4353.3,4353.1,0.237]
[1756557676347,0.4316,4353.2,4353.1,0.237]
[1756557676548,0.4316,4353.2,4353.1,0.7272]
[1756557676849,0.4316,4353.2,4353.1,0.4902]
[1756557677048,0.4316,4353.2,4353.1,0.7272]
[1756557677949,3.2078,4353.5,4353.2,0.3028]
[1756557678149,3.2078,4353.5,4353.1,0.4244]
[1756557678150,3.2078,4353.5,4353.4,0.4902]
[1756557679354,3.6394,4353.5,4353.4,0.4902]
[1756557679853,3.4099,4353.5,4353.4,0.237]
[1756557680249,3.4099,4353.5,4353.4,0.7272]
[1756557680451,3.6394,4353.5,4353.4,0.7272]
[1756557680846,3.6394,4353.5,4353.4,0.4902]
[1756557681043,0.4316,4353.4,4353.3,0.4902]
[1756557681852,0.2021,4353.4,4353.3,0.4902]
[1756557682748,0.4316,4353.4,4353.3,0.4902]
[1756557682953,0.4316,4353.4,4353.3,0.3028]
[1756557683156,0.4316,4353.4,4353.3,0.5398]
[1756557683761,0.2021,4353.4,4353.0,0.1]
[1756557684055,0.4316,4353.3,4353.2,0.237]
[1756557684950,0.4316,4353.3,4353.0,0.1]
[1756557685254,0.4316,4353.1,4353.0,0.337]
[1756557685450,0.4316,4353.1,4353.0,0.6398]
[1756557685654,0.4316,4353.1,4353.0,0.8272]
[1756557686951,4.89832,4353.1,4353.0,0.1]
[1756557687146,4.89832,4353.1,4352.5,0.1]
[1756557687355,3.5394,4352.6,4352.5,0.1]
[1756557688153,3.5394,4352.6,4351.2,3.2078]
[1756557688154,0.0296,4352.5,4351.2,3.2078]
[1756557688363,0.1148,4353.5,4351.4,0.4902]
[1756557688364,3.2078,4351.5,4351.4,0.4902]
[1756557688554,3.2552,4352.2,4352.1,0.1874]
[1756557688755,3.2848,4352.2,4352.1,0.4902]
[1756557689367,3.2078,4352.2,4352.1,0.4902]
[1756557689956,3.2848,4352.2,4352.1,0.4902]
[1756557690158,3.2848,4352.2,4352.1,0.1874]
[1756557690365,3.2078,4352.2,4352.1,0.4902]
[1756557691558,3.2848,4352.2,4352.1,0.238]
[1756557691948,3.2848,4352.2,4351.6,0.135]
[1756557691949,3.2078,4352.2,4351.6,0.135]
[1756557692149,3.2078,4352.2,4351.7,0.3028]
[1756557692474,3.2374,4352.2,4351.7,0.3028]
[1756557692656,3.2078,4352.2,4351.7,0.3028]
[1756557692857,3.2552,4352.2,4352.1,0.4902]
[1756557693352,0.0296,4352.1,4351.6,0.4378]
[1756557693557,0.077,4351.7,4351.6,0.4902]
[1756557694261,3.2848,4351.7,4351.6,0.4902]
[1756557694462,3.2848,4351.7,4351.1,0.5408]
[1756557694659,3.2848,4351.7,4351.2,0.3028]
[1756557694957,3.2078,4351.7,4351.6,0.4902]
[1756557695662,3.2078,4352.2,4351.6,4.4172]
[1756557695862,3.2078,4352.2,4352.1,0.1874]
[1756557696057,3.2078,4352.2,4352.1,0.4902]
[1756557696260,3.2078,4353.2,4352.2,0.3028]
[1756557696459,3.2078,4353.2,4352.4,0.3028]
[1756557696658,3.2552,4353.2,4353.1,0.1874]
[1756557696865,3.2552,4353.2,4353.1,0.4902]
[1756557697263,3.2078,4353.2,4353.1,0.4902]
[1756557699862,3.285,4353.2,4353.1,0.4902]
[1756557701570,3.2553,4353.2,4352.7,0.238]
[1756557701762,0.0297,4353.1,4352.8,0.4826]
[1756557701963,0.0297,4353.1,4352.7,0.238]
[1756557701964,0.0772,4353.1,4353.0,0.4826]
[1756557702561,0.0297,4353.0,4352.5,0.238]
[1756557702761,0.0297,4353.0,4351.7,33.095]
[1756557702762,0.0772,4352.4,4351.7,33.095]
[1756557702966,0.0475,4352.4,4351.8,0.5321]
[1756557703269,0.1148,4353.0,4351.8,0.4826]
[1756557703270,0.0772,4351.9,4351.8,0.4826]
[1756557703670,3.2078,4352.0,4351.8,0.1885]
[1756557703869,3.2553,4352.0,4351.9,0.4826]
[1756557704167,3.285,4352.0,4351.9,0.4826]
[1756557706062,3.2078,4352.0,4351.9,0.4826]
[1756557706663,3.2078,4352.8,4352.0,0.2941]
[1756557706967,3.2078,4352.8,4352.7,0.4826]
[1756557707167,3.2078,4352.8,4352.7,0.7206]
[1756557709981,3.2553,4352.8,4352.7,0.7206]
[1756557710476,3.285,4352.8,4352.7,0.7206]
[1756557712873,0.1148,4353.0,4352.8,0.2941]
[1756557713182,0.1148,4353.0,4352.9,0.4826]
[1756557713371,0.1148,4353.0,4351.7,33.095]
[1756557713372,0.1148,4353.0,4352.1,0.2941]
[1756557713577,3.3226,4353.0,4352.4,0.1885]
[1756557713788,3.3226,4353.0,4352.2,0.238]
[1756557713789,0.0475,4352.3,4352.2,0.238]
[1756557713987,0.0297,4352.6,4352.3,0.2941]
[1756557714286,0.0772,4352.6,4352.5,0.4826]
[1756557714482,3.2078,4352.7,4352.5,0.4826]
[1756557714683,3.2078,4352.7,4352.6,0.4826]
[1756557716387,3.285,4352.7,4351.7,33.095]
[1756557716590,0.0297,4352.6,4351.9,0.2941]
[1756557716892,0.0297,4352.4,4352.0,0.4265]
[1756557717092,0.0297,4352.4,4352.1,0.2941]
[1756557717292,0.0772,4352.4,4352.3,0.1885]
[1756557717490,3.2078,4352.7,4352.4,0.2941]
[1756557717688,0.1148,4352.9,4352.6,0.1885]
[1756557717888,0.1148,4352.9,4352.8,0.4826]
[1756557719290,0.1148,4352.9,4352.8,4.4826]
[1756557719491,3.2078,4353.3,4352.8,4.1885]
[1756557719696,3.2078,4353.8,4353.7,0.4826]
[1756557719995,3.405,4353.8,4353.7,0.7206]
[1756557720290,3.5495,4353.8,4353.7,0.7206]
[1756557720484,3.2078,4353.8,4353.7,0.7206]
[1756557720684,0.1445,4354.3,4353.8,0.2941]
[1756557720884,0.3417,4354.3,4354.2,0.1885]
[1756557721084,0.52901868,4354.3,4354.2,0.7206]
[1756557721591,0.18731868,4354.3,4354.2,0.7206]
[1756557722290,0.38451868,4354.3,4354.2,0.7206]
[1756557722797,0.52901868,4354.3,4354.2,0.238]
[1756557723197,0.1972,4353.8,4353.7,0.4826]
[1756557723393,0.52901868,4353.8,4353.7,0.4826]
[1756557723594,0.52901868,4353.8,4353.3,33.092]
[1756557723595,0.3417,4353.4,4353.3,33.092]
[1756557723798,0.52886172,4353.4,4353.3,33.33]
[1756557724098,0.3417,4353.4,4353.3,33.33]
[1756557724399,0.52889285,4353.4,4353.3,33.6241]
[1756557725099,0.18719285,4353.4,4353.3,33.6241]
[1756557725297,0.33169285,4353.4,4353.3,33.6241]
[1756557725494,0.33169285,4353.4,4353.3,33.33]
[1756557726196,0.3417,4353.0,4352.3,0.2941]
[1756557726396,0.18724398,4352.9,4352.4,0.238]
[1756557726595,0.1972,4352.6,4352.5,0.238]
[1756557726789,0.1972,4352.6,4352.2,3.5019]
[1756557726997,0.3426,4352.0,4351.9,33.3831]
[1756557727194,0.52983013,4352.0,4351.9,33.6211]
[1756557727393,0.38443013,4352.0,4351.9,33.6211]
[1756557727998,0.18723013,4352.0,4351.9,33.6211]
[1756557729900,0.1454,4352.9,4352.8,0.1963]
[1756557730100,0.53467923,4352.9,4352.8,0.7312]
[1756557730496,0.53467923,4352.9,4352.3,0.2969]
[1756557730694,0.238,4353.6,4351.9,33.089]
[1756557730695,0.1454,4352.4,4351.9,33.089]
[1756557730896,0.3475,4352.1,4352.0,0.5349]
[1756557731101,0.53467923,4352.1,4352.0,0.5349]
[1756557731396,0.53467923,4352.1,4352.0,0.7312]
[1756557731702,0.38927923,4352.1,4352.0,0.7312]
[1756557731896,0.53467923,4352.1,4352.0,0.7312]
[1756557732297,0.53467923,4352.1,4351.1,0.2969]
[1756557732298,0.3475,4351.2,4351.1,0.2969]
[1756557732500,0.38922817,4351.2,4351.1,0.238]
[1756557732895,0.53462817,4351.2,4351.1,0.238]
[1756557733097,0.3475,4351.1,4351.0,0.1]
[1756557733297,0.53462817,4351.1,4351.0,0.1]
[1756557733603,4.53462817,4351.1,4351.0,0.1]
[1756557734304,4.53457281,4351.1,4351.0,0.1]
[1756557735302,0.53457281,4351.1,4351.0,0.1]
[1756557735696,4.53457281,4351.1,4351.0,0.1]
[1756557736197,0.53457281,4351.1,4351.0,0.1]
[1756557737493,0.53457281,4351.1,4350.4,0.238]
[1756557737798,0.118,4350.5,4350.4,0.238]
[1756557738300,0.118,4350.5,4350.4,0.7312]
[1756557738703,0.0726,4350.5,4350.4,0.7312]
[1756557739405,0.118,4350.5,4350.4,0.7312]
[1756557739601,3.2078,4350.7,4350.4,0.7312]
[1756557739808,3.2078,4350.7,4350.6,0.1963]
[1756557740110,3.39435047,4350.7,4350.6,0.4932]
[1756557741103,3.2078,4350.7,4350.6,0.4932]
[1756557741506,3.3258,4350.7,4350.6,0.4932]
[1756557742803,3.2804,4350.7,4350.6,0.4932]
[1756557743006,3.2078,4350.7,4350.6,0.4932]
[1756557743706,0.0454,4351.1,4350.7,0.2969]
[1756557744009,3.2078,4351.2,4351.1,0.4932]
[1756557744310,3.51214749,4351.2,4351.1,0.4932]
[1756557744508,3.46674749,4351.2,4351.1,0.4932]
[1756557744711,3.2078,4351.2,4351.1,0.4932]
[1756557746813,3.3241,4351.2,4351.1,0.4932]
[1756557747009,3.3241,4351.2,4350.8,0.238]
[1756557747209,3.2078,4351.2,4350.8,0.238]
[1756557747511,0.1163,4351.0,4350.9,0.4932]
[1756557748410,3.2078,4351.2,4350.9,0.1963]
[1756557748610,3.3241,4351.2,4351.1,0.4932]
[1756557748908,3.2078,4351.2,4351.1,0.4932]
[1756557749507,3.2794,4351.2,4351.1,0.4932]
[1756557749711,3.3241,4351.2,4351.1,0.4932]
[1756557752121,3.3241,4351.2,4350.8,0.238]
[1756557752414,3.3241,4351.2,4350.8,0.7312]
[1756557752415,0.1163,4350.9,4350.8,0.7312]
[1756557752610,3.2078,4351.2,4350.8,0.4343]
[1756557752811,0.18658123,4351.1,4351.0,0.4932]
[1756557755025,0.25818123,4351.1,4351.0,0.4932]
[1756557755220,0.25818123,4351.1,4350.1,3.2078]
[1756557755221,4.42495339,4351.1,4350.1,0.2969]
[1756557755411,3.2525,4350.6,4350.1,0.2969]
[1756557755613,0.1163,4350.4,4350.3,0.1963]
[1756557755816,0.30325339,4350.4,4350.3,0.4932]
[1756557757124,0.25855339,4350.4,4350.3,0.4932]
[1756557757323,0.18695339,4350.4,4350.3,0.4932]
[1756557757519,3.2078,4350.6,4350.4,0.283]
[1756557757725,3.2078,4350.6,4350.5,0.487]
[1756557757924,3.39493394,4350.6,4350.5,0.487]
[1756557759324,0.18713394,4350.6,4350.5,0.487]
[1756557759817,3.2078,4351.1,4350.5,0.487]
[1756557759818,3.2078,4351.1,4351.0,0.204]
[1756557760023,3.2078,4351.1,4350.5,0.239]
[1756557760024,0.1157,4350.5,4350.4,0.487]
[1756557760417,0.30295577,4350.5,4350.4,0.487]
[1756557760818,0.18725577,4350.5,4350.4,0.487]
[1756557761621,0.30295577,4350.5,4350.4,0.487]
[1756557763930,0.25905577,4350.5,4350.4,0.487]
[1756557764324,0.30295577,4350.5,4350.4,0.487]
[1756557765421,0.30295577,4350.5,4350.0,0.1]
[1756557765623,0.1157,4350.1,4350.0,0.1]
[1756557765924,3.51114119,4350.1,4350.0,0.1]
[1756557766238,3.51111556,4350.1,4350.0,0.1]
[1756557768329,3.46721556,4350.1,4350.0,0.587]
[1756557768928,3.51111556,4350.1,4350.0,0.587]
[1756557769131,3.51111556,4350.1,4350.0,0.1]
[1756557769734,3.51111556,4350.1,4350.0,0.587]
[1756557769935,3.46721556,4350.1,4350.0,0.587]
[1756557770433,3.51111556,4350.1,4350.0,0.587]
[1756557771337,3.46721556,4350.1,4350.0,0.587]
[1756557771739,3.39541556,4350.1,4350.0,0.587]
[1756557772927,0.18761556,4350.1,4350.0,0.587]
[1756557773237,0.18761556,4350.1,4350.0,4.825]
[1756557774637,3.2078,4351.0,4350.9,0.487]
[1756557775833,3.3955,4351.0,4350.9,0.487]
[1756557776237,3.627,4351.0,4350.9,0.283]
[1756557776433,3.627,4351.0,4350.9,0.487]
[1756557778340,0.1877,4350.8,4350.7,0.487]
[1756557778540,0.4192,4350.8,4350.7,0.487]
[1756557779236,0.4192,4350.8,4350.1,0.283]
[1756557779443,3.2078,4351.0,4350.1,0.238]
[1756557779737,0.2315,4350.9,4350.2,0.283]
[1756557780442,3.2078,4351.0,4350.8,0.487]
[1756557780639,3.2078,4351.0,4350.9,0.487]
[1756557781036,3.3955,4351.0,4350.9,0.487]
[1756557781231,3.627,4351.0,4350.9,0.487]
[1756557782043,0.1877,4351.0,4350.9,0.487]
[1756557782434,0.2315,4351.5,4351.0,0.283]
[1756557782742,0.2315,4351.5,4350.8,0.283]
[1756557782944,0.1877,4350.9,4350.8,0.487]
[1756557783145,0.4192,4350.9,4350.8,0.487]
[1756557783545,0.1877,4350.9,4350.8,0.487]
[1756557784140,0.4192,4351.2,4351.1,0.487]
[1756557784346,3.627,4351.6,4351.5,0.487]
[1756557785540,3.2078,4351.6,4351.5,0.487]
[1756557785741,3.2078,4351.6,4351.5,4.487]
[1756557786042,3.2078,4351.6,4351.5,0.487]
[1756557786444,3.39819121,4351.6,4351.5,0.487]
[1756557786646,3.58589121,4351.6,4351.5,0.487]
[1756557787141,0.37809121,4351.6,4351.5,0.487]
[1756557787339,0.19039121,4351.6,4351.5,0.487]
[1756557787845,3.2078,4352.2,4351.5,4.204]
[1756557788048,0.19032169,4352.1,4352.0,0.5029]
[1756557788242,0.19032169,4352.1,4352.0,0.7409]
[1756557788542,3.2078,4352.8,4352.7,0.2004]
[1756557788747,3.39800634,4352.8,4352.7,0.7409]
[1756557789351,3.2078,4352.8,4352.7,0.7409]
[1756557792646,3.2078,4353.5,4352.7,0.7409]
[1756557792843,0.4319,4353.8,4353.7,0.2004]
[1756557793052,0.4319,4353.8,4353.7,0.7409]
[1756557794050,0.2324,4354.1,4353.8,0.3025]
[1756557794352,0.2324,4354.1,4353.7,0.4384]
[1756557794353,3.2078,4354.2,4354.1,0.5029]
[1756557795651,3.4402,4355.0,4354.1,0.5029]
[1756557795852,3.4073,4355.0,4354.9,0.5029]
[1756557796048,3.2078,4355.0,4354.9,0.7409]
[1756557796248,33.1,4357.1,4355.0,0.3025]
[1756557796249,3.4402,4355.7,4355.0,0.3025]
[1756557796547,3.4402,4355.7,4354.9,0.4384]
[1756557796548,0.4319,4355.7,4355.6,0.5029]
[1756557796744,0.4319,4355.7,4355.6,0.6879]
[1756557798550,3.2078,4356.2,4355.7,0.3025]
[1756557798757,0.4319,4356.2,4356.1,0.5029]
[1756557798945,0.4319,4356.2,4355.5,3.5103]
[1756557799146,0.1995,4355.1,4354.8,33.096]
[1756557799347,0.4319,4355.0,4354.9,0.7409]
[1756557799546,0.2324,4355.4,4354.9,0.7409]
[1756557799752,0.2324,4355.7,4355.0,0.3025]
[1756557800059,0.1995,4355.7,4355.6,0.2004]
[1756557800249,0.1995,4355.7,4355.6,0.7409]
[1756557800650,0.4319,4355.7,4355.6,0.7409]
[1756557800953,0.4319,4355.2,4355.1,0.5029]
[1756557801153,0.4319,4355.2,4355.1,0.238]
[1756557801451,0.4319,4355.2,4354.8,33.096]
[1756557801656,0.4319,4354.9,4354.8,33.096]
[1756557801859,0.4319,4354.9,4354.8,33.334]
[1756557803652,3.6397,4355.4,4355.3,0.2004]
[1756557803954,3.6397,4355.4,4355.3,0.238]
[1756557804159,3.6397,4355.4,4355.3,0.7409]
[1756557804654,3.6397,4355.4,4354.8,33.096]
[1756557804655,0.2324,4354.9,4354.8,33.096]
[1756557804846,0.2324,4354.9,4354.8,33.334]
[1756557804847,3.4402,4354.9,4354.8,33.334]
[1756557805353,3.4402,4354.9,4354.8,33.6365]
[1756557805956,3.4402,4354.9,4354.8,33.334]
[1756557806361,3.2078,4354.9,4354.8,33.6365]
[1756557806663,3.2078,4355.4,4355.3,0.5029]
[1756557806864,3.2078,4355.4,4355.3,0.7409]
[1756557807059,3.6397,4355.4,4355.3,0.238]
[1756557807769,3.4073,4355.4,4354.8,33.096]
[1756557807975,0.2328,4355.3,4355.0,0.3025]
[1756557808170,3.2078,4355.4,4354.9,0.238]
[1756557808370,0.4323,4355.1,4355.0,0.5029]
[1756557808565,0.1995,4355.1,4355.0,0.5029]
[1756557808969,0.4323,4355.1,4355.0,0.5029]
[1756557809575,0.4323,4354.9,4354.8,33.096]
[1756557809775,0.4323,4354.9,4354.8,33.334]
[1756557810178,0.4323,4354.9,4354.8,33.6365]
[1756557810569,0.4323,4354.9,4354.1,3.2078]
[1756557810570,3.4458,4355.4,4354.1,0.3025]
[1756557810771,0.4323,4354.2,4354.1,0.5029]
[1756557810973,0.4323,4354.2,4354.1,0.7409]
[1756557811374,0.2328,4354.8,4354.2,0.3025]
[1756557811570,0.4323,4354.8,4354.7,0.5029]
[1756557811775,0.4323,4354.8,4354.7,0.4384]
[1756557812070,0.38567537,4354.8,4354.0,0.1]
[1756557812383,0.4323,4354.2,4354.1,0.5405]
[1756557812680,0.4323,4354.1,4354.0,0.1]
[1756557812870,0.4323,4354.1,4354.0,0.338]
[1756557813375,0.61877028,4354.1,4354.0,0.338]
[1756557814375,0.61877028,4354.1,4354.0,0.6405]
[1756557814574,0.61877028,4354.1,4354.0,0.8409]
[1756557814778,0.18647028,4354.1,4354.0,0.8409]
[1756557814979,3.2078,4354.4,4354.0,0.5384]
[1756557815174,0.18683568,4354.3,4354.1,0.3025]
[1756557815380,3.2078,4354.4,4354.0,0.338]
[1756557815381,3.2078,4354.4,4354.3,0.5029]
[1756557815576,3.82694307,4354.4,4354.3,0.5029]
[1756557815773,0.1995,4354.1,4354.0,0.1]
[1756557816081,0.61914307,4354.1,4354.0,0.338]
[1756557816984,0.61925924,4354.1,4354.0,0.338]
[1756557817577,0.61925924,4354.1,4354.0,0.11401451]
[1756557817874,0.2322,4354.0,4353.5,0.3025]
[1756557818183,0.4236,4353.6,4353.5,0.3025]
[1756557818385,0.61055924,4353.6,4353.5,0.5405]
[1756557819478,0.61055924,4353.6,4353.5,0.7344]
[1756557820285,0.18695924,4353.6,4353.5,0.7344]
[1756557820577,0.18695924,4353.6,4353.5,0.4319]
[1756557820781,3.2078,4354.3,4354.2,0.1939]
[1756557820983,0.18727332,4354.3,4354.2,0.7363]
[1756557827391,3.2078,4354.8,4354.2,0.4319]
[1756557827690,0.18741912,4354.7,4354.6,0.1939]
[1756557827891,0.18741912,4354.7,4354.6,0.7363]
[1756557828391,0.1874757,4354.7,4354.6,0.7363]
[1756557830584,3.2078,4355.3,4354.6,5.14961]
[1756557830789,3.2078,4355.3,4355.2,0.4983]
[1756557830990,3.2078,4355.3,4355.2,0.7363]
[1756557831893,3.3992,4355.3,4355.2,0.7363]
[1756557832089,3.6871,4355.3,4355.2,0.7363]
[1756557833188,3.2078,4355.3,4355.2,0.7363]
[1756557834291,3.3992,4355.3,4355.2,0.7363]
[1756557834485,0.2879,4356.7,4355.3,0.3044]
[1756557834892,0.4793,4355.4,4355.3,0.4983]
[1756557835093,0.4793,4355.4,4355.3,0.7363]
[1756557836397,0.2879,4355.8,4355.3,0.7363]
[1756557836697,0.2879,4356.2,4355.4,0.3044]
[1756557838291,0.4793,4356.3,4356.2,0.4983]
[1756557838488,0.4793,4356.3,4356.2,0.7363]
[1756557838791,0.4793,4356.3,4356.2,0.4319]
[1756557839192,0.4793,4356.3,4356.2,0.238]
[1756557840189,4.1914,4356.3,4355.1,36.2858]
[1756557840387,0.4793,4355.3,4355.2,0.7363]
[1756557840792,0.1914,4355.3,4355.2,0.7363]
[1756557841192,0.2879,4355.7,4355.2,0.4319]
[1756557841392,0.2879,4356.2,4355.3,0.3044]
[1756557842383,0.4793,4356.2,4356.1,0.1939]
[1756557842582,0.4793,4356.6,4356.5,0.4983]
[1756557842787,0.4793,4356.6,4356.5,0.7363]
[1756557842788,0.1914,4356.6,4356.5,0.7363]
[1756557843185,3.2078,4357.0,4356.6,0.3044]
[1756557843385,0.4793,4356.9,4356.8,0.4983]
[1756557843797,3.2078,4357.0,4356.8,0.4983]
[1756557843991,0.2879,4357.3,4356.9,0.4983]
[1756557844193,0.1914,4357.1,4357.0,0.7363]
[1756557844794,0.4793,4357.8,4357.7,0.1939]
[1756557844994,0.4793,4357.8,4357.7,0.7363]
[1756557846095,0.1914,4357.8,4357.0,3.2078]
[1756557846299,0.1914,4357.2,4357.1,0.238]
[1756557846500,0.4793,4357.2,4357.1,0.7363]
[1756557847096,0.4793,4357.2,4357.1,0.4983]
[1756557847401,0.4793,4357.2,4357.1,0.7363]
[1756557848293,0.4979,4358.0,4357.9,0.2018]
[1756557848499,0.4979,4358.0,4357.9,0.7398]
[1756557848899,0.3061,4358.5,4357.9,0.7398]
[1756557849201,0.3061,4358.5,4358.0,0.3]
[1756557849503,3.2078,4358.7,4358.0,0.5018]
[1756557849504,0.4979,4358.1,4358.0,0.5018]
[1756557849697,0.1918,4358.1,4357.6,3.5078]
[1756557849898,0.4979,4357.7,4357.6,0.5018]
[1756557850098,0.4979,4357.7,4357.6,0.7418]
[1756557851699,3.2078,4358.7,4357.6,0.7418]
[1756557851700,3.2078,4358.7,4357.6,0.24]
[1756557851899,0.3061,4358.6,4357.7,0.3]
[1756557852404,0.4979,4357.7,4357.6,0.24]
[1756557853201,0.3061,4357.6,4356.8,0.3]
[1756557853394,0.4979,4356.9,4356.8,0.5018]
[1756557853596,0.4979,4356.9,4356.8,0.7418]
[1756557854101,3.2078,4357.4,4356.0,40.9]
[1756557854102,0.3061,4356.8,4356.1,0.3]
[1756557854304,0.4979,4356.8,4356.7,0.2018]
[1756557854501,0.4979,4356.8,4356.7,0.7418]
[1756557855006,0.4979,4356.2,4356.1,0.5018]
[1756557855401,0.4979,4356.2,4356.1,0.7408]
[1756557855604,0.4979,4356.1,4356.0,0.1]
[1756557855801,0.4979,4356.1,4356.0,0.34]
[1756557856004,0.4979,4356.1,4356.0,0.5418]
[1756557856317,0.4979,4356.3,4356.2,0.5018]
[1756557856699,0.1918,4356.3,4356.0,0.1]
[1756557856902,0.4979,4356.2,4356.1,0.24]
[1756557857107,0.3061,4356.1,4356.0,0.1]
[1756557857301,0.4979,4356.1,4356.0,0.8418]
[1756557857497,0.4979,4356.1,4356.0,0.6018]
[1756557857807,0.1918,4356.1,4356.0,0.8418]
[1756557858001,3.2078,4356.9,4356.0,0.5418]
[1756557858202,0.3061,4356.8,4356.1,0.3]
[1756557859899,0.4979,4356.2,4356.1,0.2018]
[1756557860098,0.4979,4356.2,4356.1,0.4408]
[1756557860506,0.4979,4356.2,4356.1,0.7408]
[1756557861004,0.4979,4356.2,4356.1,0.239]
[1756557861311,3.2078,4356.4,4356.2,0.3]
[1756557861502,3.7057,4356.4,4356.3,0.5018]
[1756557862312,3.7057,4356.4,4356.3,0.239]
[1756557862905,3.7057,4356.4,4356.0,0.1]
[1756557862906,7.7057,4356.4,4356.0,0.1]
[1756557863107,3.7057,4356.4,4356.1,0.239]
[1756557863509,3.7057,4356.4,4356.0,0.339]
[1756557864211,3.7057,4356.4,4356.0,0.1]
[1756557872414,3.7057,4356.4,4356.0,0.4]
[1756557872616,0.3061,4356.3,4356.0,0.4]
[1756557872815,0.1918,4356.1,4356.0,0.4]
[1756557873015,0.4979,4356.1,4356.0,0.4]